bitfinex/quotes_BTCUSD_20250212
["timestamp","ask_amount","ask_price","bid_price","bid_amount"]
[1739340038384,0.2907745,96050.0,96049.0,0.00022365]
[1739340038539,0.15497831,96028.0,96027.0,0.08364526]
[1739340039101,0.15497831,96028.0,96019.0,0.04722386]
[1739340039538,0.290361,96034.0,96019.0,0.04722386]
[1739340039736,0.290361,96034.0,96027.0,0.002]
[1739340039939,0.156202,96030.0,96027.0,0.002]
[1739340040166,0.208261,96033.0,96019.0,0.04722386]
[1739340040380,0.156199,96031.0,96019.0,0.04722386]
[1739340040578,0.156202,96030.0,96019.0,0.20544086]
[1739340040727,0.208261,96033.0,96019.0,0.04922386]
[1739340040929,0.156199,96032.0,96019.0,0.04722386]
[1739340041764,0.001,96033.0,96020.0,0.208289]
[1739340041967,0.001,96033.0,96023.0,0.156211]
[1739340042145,0.001,96033.0,96019.0,0.04722386]
[1739340042373,0.001,96033.0,96023.0,0.15621]
[1739340042549,0.001,96034.0,96023.0,0.15621]
[1739340042756,0.157195,96034.0,96024.0,0.15621]
[1739340042973,0.001,96033.0,96024.0,0.15621]
[1739340043152,0.001,96033.0,96025.0,0.31078065]
[1739340043338,0.0821,96047.0,96026.0,0.208276]
[1739340043339,0.156188,96038.0,96026.0,0.208276]
[1739340043541,0.001,96033.0,96027.0,0.156205]
[1739340044298,0.002,96033.0,96027.0,0.156205]
[1739340044655,0.002,96033.0,96026.0,0.10250365]
[1739340044894,0.002,96033.0,96027.0,0.156205]
[1739340045906,0.002,96033.0,96019.0,0.25551386]
[1739340046080,0.156198,96032.0,96020.0,0.10250365]
[1739340046292,0.156203,96029.0,96019.0,0.04722386]
[1739340046604,0.290965,96032.0,96019.0,0.04722386]
[1739340047060,0.364465,96031.0,96019.0,0.00022386]
[1739340047367,0.156217,96020.0,96019.0,0.00022386]
[1739340047780,0.238917,96020.0,96019.0,0.00222386]
[1739340048346,0.238917,96020.0,96019.0,0.00022386]
[1739340049577,0.238917,96020.0,96019.0,0.00122386]
[1739340049775,0.238917,96020.0,96019.0,0.00022386]
[1739340049776,0.244917,96020.0,96019.0,0.00022386]
[1739340050202,0.242917,96020.0,96019.0,0.00022386]
[1739340050595,0.250917,96020.0,96019.0,0.00122386]
[1739340061700,0.012,96020.0,96019.0,0.00122386]
[1739340066528,0.0886,96020.0,96019.0,0.00122386]
[1739340068820,0.19110365,96020.0,96019.0,0.00122386]
[1739340070653,0.0886,96020.0,96019.0,0.00122386]
[1739340072792,0.012,96020.0,96019.0,0.00122386]
[1739340074752,0.14843588,96021.0,96019.0,0.00122386]
[1739340074954,0.25093953,96021.0,96019.0,0.00122386]
[1739340075395,0.25093953,96021.0,96019.0,0.00022386]
[1739340075786,0.008,96020.0,96019.0,0.00122386]
[1739340076021,0.11350365,96020.0,96019.0,0.00222386]
[1739340076227,0.21710365,96020.0,96019.0,0.00122386]
[1739340076400,0.35910365,96020.0,96019.0,0.00022386]
[1739340076578,0.35910365,96020.0,96019.0,0.00122386]
[1739340076811,0.35610365,96020.0,96019.0,0.00022386]
[1739340077216,0.35910365,96020.0,96019.0,0.00122386]
[1739340078115,0.35910365,96020.0,96019.0,0.00222386]
[1739340078338,0.40640365,96020.0,96019.0,0.00222386]
[1739340078537,0.156253,95998.0,95997.0,0.08364526]
[1739340078740,0.16700337,95998.0,95997.0,0.08368951]
[1739340078944,0.156253,95998.0,95997.0,4.425e-05]
[1739340080048,0.284713,96010.0,95997.0,4.425e-05]
[1739340080266,0.156251,95999.0,95997.0,4.425e-05]
[1739340081359,0.156251,95999.0,95997.0,0.00504425]
[1739340082013,0.156253,95998.0,95997.0,4.425e-05]
[1739340082156,0.156253,95998.0,95997.0,0.00404425]
[1739340082981,0.156253,95998.0,95997.0,4.425e-05]
[1739340083193,0.156253,95998.0,95997.0,0.00504425]
[1739340084302,0.156253,95998.0,95997.0,0.00526811]
[1739340084500,0.156253,95998.0,95997.0,0.00026811]
[1739340084951,0.164253,95998.0,95997.0,0.00126811]
[1739340085542,0.169253,95998.0,95997.0,0.00126811]
[1739340088938,0.208315,96008.0,95997.0,0.00126811]
[1739340089143,0.156253,95998.0,95997.0,0.00126811]
[1739340090034,0.156253,95998.0,95997.0,0.00226811]
[1739340090960,0.156253,95998.0,95997.0,0.00026811]
[1739340091164,0.156253,95998.0,95997.0,0.00126811]
[1739340091682,0.156253,95998.0,95997.0,0.00026811]
[1739340092074,0.159253,95998.0,95997.0,0.00026811]
[1739340092276,0.162253,95998.0,95997.0,0.00026811]
[1739340092763,0.006,95998.0,95997.0,0.00026811]
[1739340093469,0.003,95998.0,95997.0,0.00026811]
[1739340094706,0.156251,95999.0,95997.0,0.00026811]
[1739340094911,0.003,95998.0,95997.0,0.00026811]
[1739340095408,0.156251,95999.0,95997.0,0.00026811]
[1739340095618,0.003,95998.0,95997.0,0.00026811]
[1739340095819,0.006,95998.0,95997.0,0.00026811]
[1739340096456,0.156243,96004.0,95997.0,0.00026811]
[1739340096651,0.006,95999.0,95997.0,0.00026811]
[1739340097263,0.003,95998.0,95997.0,0.00026811]
[1739340098213,0.006,95998.0,95997.0,0.00026811]
[1739340098505,0.003,95998.0,95997.0,0.00026811]
[1739340099110,0.159253,95998.0,95997.0,0.00026811]
[1739340099463,0.162253,95998.0,95997.0,0.00026811]
[1739340099674,0.159253,95998.0,95997.0,0.00026811]
[1739340099872,0.165253,95998.0,95997.0,0.00026811]
[1739340101711,0.156253,95998.0,95997.0,0.00026811]
[1739340101906,0.159253,95998.0,95997.0,0.00026811]
[1739340102154,0.162253,95998.0,95997.0,0.00026811]
[1739340102379,0.17006694,95998.0,95997.0,0.00026811]
[1739340103842,0.1680978,95998.0,95997.0,0.00026811]
[1739340104363,0.16028386,95998.0,95997.0,0.00026811]
[1739340107169,0.16810444,95998.0,95997.0,0.00026811]
[1739340108741,0.16028386,95998.0,95997.0,0.00026811]
[1739340110911,0.00191436,95998.0,95997.0,0.00026811]
[1739340113770,0.00191436,95998.0,95997.0,0.33886734]
[1739340113971,0.00191436,95998.0,95997.0,0.18157176]
[1739340114376,0.0001066,96000.0,95998.0,0.156253]
[1739340118197,2.326e-05,96000.0,95998.0,0.156253]
[1739340118401,0.156229,96013.0,96000.0,0.156248]
[1739340118830,0.208292,96019.0,96000.0,0.156249]
[1739340119528,0.002,96013.0,96000.0,0.001]
[1739340119825,0.15623,96012.0,96000.0,0.157249]
[1739340120409,0.156233,96011.0,96000.0,0.001]
[1739340120588,0.002,96013.0,96000.0,0.001]
[1739340120794,0.156232,96011.0,95999.0,0.156251]
[1739340121039,0.156229,96013.0,96000.0,0.001]
[1739340121243,0.156229,96013.0,96001.0,0.156247]
[1739340121903,0.158229,96013.0,96001.0,0.156247]
[1739340122277,0.156229,96013.0,96001.0,0.156247]
[1739340122697,0.1583356,96013.0,96001.0,0.157247]
[1739340123113,0.15623,96012.0,96001.0,0.001]
[1739340123517,0.0021066,96013.0,96001.0,0.001]
[1739340124023,0.2104136,96013.0,96001.0,0.001]
[1739340124226,0.0021066,96013.0,96001.0,0.001]
[1739340124428,0.156243,96004.0,95997.0,0.00026811]
[1739340124632,0.156245,96003.0,95997.0,0.00026811]
[1739340124759,0.156244,96004.0,96001.0,0.001]
[1739340125160,0.156249,96001.0,95997.0,0.00026811]
[1739340125370,0.0001066,96013.0,95997.0,0.00026811]
[1739340125547,0.156253,95998.0,95997.0,0.00026811]
[1739340125756,0.002,96004.0,95997.0,0.00026811]
[1739340125953,0.01031458,96018.0,95997.0,0.00026811]
[1739340126153,0.156253,95998.0,95997.0,0.00026811]
[1739340126582,0.15625,96000.0,95997.0,0.00026811]
[1739340127926,0.15625,96000.0,95997.0,0.00126811]
[1739340128153,0.156249,96001.0,95997.0,0.00126811]
[1739340128329,0.208318,96007.0,95998.0,0.048]
[1739340128719,0.001,96000.0,95998.0,0.048]
[1739340128925,0.15725,96000.0,95998.0,0.048]
[1739340129113,0.15625,96000.0,95998.0,0.048]
[1739340130974,0.36456,96006.0,95998.0,0.048]
[1739340131112,0.20832,96006.0,95998.0,0.048]
[1739340131317,0.156251,95999.0,95998.0,0.048]
[1739340132095,0.001,96000.0,95997.0,0.00026811]
[1739340132096,0.156253,95998.0,95997.0,0.00026811]
[1739340133259,0.156253,95998.0,95997.0,0.00126811]
[1739340135863,0.156253,95998.0,95997.0,0.00026811]
[1739340136165,0.158253,95998.0,95997.0,0.00026811]
[1739340138199,0.002,95998.0,95997.0,0.00026811]
[1739340138963,0.208328,96003.0,95997.0,0.00026811]
[1739340139274,0.002,95998.0,95997.0,0.00026811]
[1739340139906,0.156253,95998.0,95997.0,0.00026811]
[1739340140267,0.156253,95998.0,95997.0,0.00126811]
[1739340141508,0.156253,95998.0,95997.0,0.00026811]
[1739340141710,0.158253,95998.0,95997.0,0.00026811]
[1739340142334,0.156253,95998.0,95997.0,0.00026811]
[1739340142523,0.158253,95998.0,95997.0,0.00026811]
[1739340143129,0.156253,95998.0,95997.0,0.00026811]
[1739340143296,0.158253,95998.0,95997.0,0.00026811]
[1739340144867,0.156253,95998.0,95997.0,0.00026811]
[1739340145278,0.158253,95998.0,95997.0,0.00026811]
[1739340150197,0.002,95998.0,95997.0,0.00026811]
[1739340150961,0.156252,95999.0,95997.0,0.00026811]
[1739340151165,0.002,95998.0,95997.0,0.00026811]
[1739340151810,0.0077066,96014.0,95997.0,0.00026811]
[1739340151947,0.0001066,96014.0,95998.0,0.0764]
[1739340152152,0.15,96007.0,95998.0,0.0764]
[1739340152367,0.306239,96007.0,95998.0,0.0764]
[1739340152571,0.15624,96006.0,95998.0,0.0764]
[1739340153206,0.156242,96005.0,95998.0,0.0764]
[1739340153408,0.15,96007.0,95998.0,0.0764]
[1739340153684,0.15624,96006.0,95998.0,0.0764]
[1739340153923,0.2084106,96014.0,95998.0,0.232652]
[1739340153924,0.15,96010.0,95998.0,0.232652]
[1739340154336,0.158239,96007.0,95998.0,0.0764]
[1739340154526,0.002,96007.0,95998.0,0.0764]
[1739340154887,0.156242,96005.0,95998.0,0.0764]
[1739340155254,0.15,96010.0,95998.0,0.0764]
[1739340155255,0.002,96010.0,96001.0,0.156247]
[1739340155431,0.15,96009.0,96001.0,0.156247]
[1739340155850,0.002,96007.0,96001.0,0.156247]
[1739340156485,0.002,96007.0,95999.0,0.25875365]
[1739340156913,0.15624,96006.0,95999.0,0.10250365]
[1739340157506,0.156238,96008.0,95999.0,0.10250365]
[1739340157750,0.208318,96007.0,95998.0,0.0764]
[1739340157954,0.156242,96005.0,95997.0,0.00026811]
[1739340158364,0.002,96006.0,95997.0,0.00026811]
[1739340158571,0.208322,96005.0,95997.0,0.00026811]
[1739340158892,0.156247,96002.0,95997.0,0.00026811]
[1739340159089,0.002,96005.0,95997.0,0.00026811]
[1739340159402,0.208324,96004.0,95997.0,0.00026811]
[1739340159612,0.156246,96003.0,95997.0,0.00026811]
[1739340160443,0.156252,95999.0,95997.0,0.00026811]
[1739340161244,0.208324,96004.0,95997.0,0.00026811]
[1739340161802,0.156252,95999.0,95997.0,0.00026811]
[1739340162520,0.208331,96001.0,95997.0,0.00026811]
[1739340162721,0.156245,96003.0,95997.0,0.00026811]
[1739340163705,0.156249,96001.0,95997.0,0.00026811]
[1739340164551,0.15625,96000.0,95997.0,0.00026811]
[1739340165028,0.156252,95999.0,95997.0,0.00026811]
[1739340166898,0.156253,95998.0,95997.0,0.00026811]
[1739340170465,0.156253,95998.0,95997.0,0.00126811]
[1739340170945,0.156253,95998.0,95997.0,0.00026811]
[1739340171348,0.157253,95998.0,95997.0,0.00026811]
[1739340171713,0.156253,95998.0,95997.0,0.00026811]
[1739340172113,0.158253,95998.0,95997.0,0.00026811]
[1739340173578,0.158253,95998.0,95983.0,0.208369]
[1739340173579,0.002,95998.0,95983.0,0.208369]
[1739340173729,0.002,95998.0,95983.0,0.2084936]
[1739340173945,0.156257,95996.0,95985.0,0.156274]
[1739340174649,0.156257,95996.0,95986.0,0.156272]
[1739340176858,0.208337,95999.0,95986.0,0.156272]
[1739340177122,0.156254,95997.0,95986.0,0.156272]
[1739340178336,0.208337,95999.0,95986.0,0.156272]
[1739340178478,0.156254,95997.0,95987.0,0.156271]
[1739340181083,0.2084306,96004.0,95983.0,0.0001246]
[1739340181320,0.156254,95998.0,95983.0,0.0001246]
[1739340181561,0.156254,95998.0,95987.0,0.15627]
[1739340181997,0.156254,95997.0,95987.0,0.15627]
[1739340183814,0.156255,95997.0,95985.0,0.208365]
[1739340184072,0.156253,95999.0,95988.0,0.156269]
[1739340184569,0.156254,95998.0,95987.0,0.15649486]
[1739340184885,0.156254,95998.0,95987.0,0.00022386]
[1739340185026,0.156254,95998.0,95988.0,0.156268]
[1739340185237,0.156254,95998.0,95987.0,0.00022386]
[1739340185676,0.0001066,96004.0,95996.0,0.156256]
[1739340185874,0.0001066,96004.0,95994.0,0.156258]
[1739340186091,0.0001066,96004.0,95994.0,0.0782]
[1739340186243,0.0001066,96004.0,96002.0,0.156246]
[1739340186647,0.0001066,96004.0,95997.0,0.0489]
[1739340186990,0.0001066,96004.0,96002.0,0.156246]
[1739340187371,0.0001066,96004.0,96003.0,0.0782]
[1739340188000,0.0001066,96004.0,96003.0,0.18070365]
[1739340188986,0.0001066,96004.0,96003.0,0.0782]
[1739340189198,0.0001066,96004.0,96002.0,0.156246]
[1739340189445,0.0001066,96004.0,96002.0,0.163246]
[1739340189646,0.0001066,96004.0,96003.0,0.001]
[1739340189849,0.0001066,96004.0,96003.0,0.22326224]
[1739340190172,0.0001066,96004.0,96003.0,0.22960365]
[1739340190384,0.0001066,96004.0,96003.0,0.23260365]
[1739340190793,0.0001066,96004.0,96003.0,0.22960365]
[1739340192176,0.0001066,96004.0,96003.0,0.23160365]
[1739340192445,0.0001066,96004.0,96003.0,0.23260365]
[1739340192597,0.0001066,96004.0,96003.0,0.23060365]
[1739340193002,0.0001066,96004.0,96003.0,0.25810102]
[1739340193651,0.0001066,96004.0,96003.0,0.36060467]
[1739340194315,0.0001066,96004.0,96003.0,0.68793639]
[1739340195322,0.0001066,96004.0,96003.0,0.67993639]
[1739340195482,0.0001066,96004.0,96003.0,0.66343902]
[1739340195677,0.0001066,96004.0,96003.0,0.67643902]
[1739340195881,0.0001066,96004.0,96003.0,0.67243902]
[1739340196087,0.0001066,96004.0,96003.0,0.66343902]
[1739340196487,0.0001066,96004.0,96003.0,0.67743902]
[1739340197289,0.0001066,96004.0,96003.0,0.77994267]
[1739340197860,0.0001066,96004.0,96003.0,0.67743902]
[1739340199204,0.0001066,96004.0,96003.0,0.83368402]
[1739340200237,0.13148853,96033.0,96003.0,0.67743902]
[1739340200443,0.156197,96032.0,96023.0,0.156211]
[1739340200645,0.572665,96042.0,96022.0,0.156213]
[1739340200838,0.156198,96032.0,96022.0,0.156213]
[1739340201184,0.2372,96043.0,96010.0,0.14605073]
[1739340201378,0.156195,96034.0,96024.0,0.15621]
[1739340201627,0.156196,96033.0,96024.0,0.15621]
[1739340202388,0.156196,96033.0,96022.0,0.208285]
[1739340202670,0.156197,96032.0,96023.0,0.156212]
[1739340202873,0.208249,96039.0,96011.0,0.36486371]
[1739340202874,0.23733277,96043.0,96011.0,0.15655471]
[1739340203066,0.156194,96034.0,96012.0,0.20934835]
[1739340203272,0.156194,96034.0,96018.0,0.208293]
[1739340203410,0.156194,96034.0,96025.0,0.030209]
[1739340203617,0.156197,96033.0,96024.0,0.156209]
[1739340203910,0.156198,96032.0,96024.0,0.156209]
[1739340204304,0.156198,96032.0,96023.0,0.156212]
[1739340205328,0.1562,96031.0,96013.0,0.10250365]
[1739340205527,0.1562,96031.0,96023.0,0.156211]
[1739340205946,0.208258,96035.0,96021.0,0.208287]
[1739340206149,0.23733277,96043.0,96021.0,0.208287]
[1739340206357,0.364427,96041.0,96024.0,0.15621]
[1739340206686,0.156197,96033.0,96026.0,0.156207]
[1739340206885,0.156199,96032.0,96024.0,0.156209]
[1739340207222,0.156199,96032.0,96023.0,0.208282]
[1739340207436,0.156199,96032.0,96025.0,0.156208]
[1739340208537,0.208242,96042.0,96024.0,0.001]
[1739340208749,0.208242,96042.0,96024.0,0.15621]
[1739340208969,0.156199,96031.0,96024.0,0.15621]
[1739340209168,0.208252,96038.0,96019.0,0.20829]
[1739340209400,0.156196,96033.0,96025.0,0.156208]
[1739340209616,0.156199,96032.0,96025.0,0.156208]
[1739340209793,0.0001066,96031.0,96025.0,0.156208]
[1739340210257,0.0001066,96031.0,96024.0,0.002]
[1739340210258,0.0809,96030.0,96024.0,0.002]
[1739340210460,0.156209,96025.0,96024.0,0.002]
[1739340211104,0.156209,96025.0,96024.0,0.001]
[1739340211316,0.023,96027.0,96003.0,0.27983537]
[1739340211529,0.156235,96009.0,96003.0,0.27983537]
[1739340211766,0.0807,96010.0,96001.0,0.156247]
[1739340212334,0.0807,96010.0,95999.0,0.00022386]
[1739340212532,0.156235,96009.0,95999.0,0.00022386]
[1739340212712,0.156238,96008.0,96005.0,0.003]
[1739340212923,0.0807,96010.0,95999.0,0.00034846]
[1739340213124,0.38482062,96010.0,95999.0,0.00034846]
[1739340213311,0.156242,96005.0,95999.0,0.00034846]
[1739340213694,0.156244,96004.0,95999.0,0.00034846]
[1739340214133,0.15624,96006.0,95999.0,0.00034846]
[1739340214347,0.15624,96006.0,96001.0,0.002]
[1739340214528,0.15624,96006.0,96001.0,0.01]
[1739340214728,0.156242,96005.0,96001.0,0.01]
[1739340214937,0.156242,96005.0,95999.0,0.00234846]
[1739340215089,0.156242,96005.0,95999.0,0.00034846]
[1739340215301,0.156242,96005.0,95999.0,0.00934846]
[1739340215735,0.208318,96007.0,95999.0,0.00034846]
[1739340215929,0.156241,96006.0,95999.0,0.00034846]
[1739340216128,0.156241,96006.0,96001.0,0.002]
[1739340217558,0.156243,96004.0,95999.0,0.00034846]
[1739340217972,0.15624,96006.0,95999.0,0.00034846]
[1739340218510,0.15724,96006.0,95999.0,0.00034846]
[1739340218731,0.001,96006.0,96000.0,0.156249]
[1739340218931,0.29899171,96010.0,96000.0,0.156249]
[1739340219201,0.001,96006.0,96000.0,0.156249]
[1739340219587,0.15724,96006.0,95999.0,0.15659846]
[1739340219755,0.156244,96004.0,95999.0,0.00034846]
[1739340219961,0.15724,96006.0,95999.0,0.00034846]
[1739340220681,0.001,96006.0,95999.0,0.00034846]
[1739340220878,0.156242,96005.0,95999.0,0.00034846]
[1739340221092,0.156242,96005.0,96001.0,0.00022365]
[1739340221244,0.208316,96008.0,96001.0,0.00022365]
[1739340221607,0.156239,96007.0,96001.0,0.00022365]
[1739340223441,0.08020267,96010.0,96001.0,0.00022365]
[1739340223642,0.156243,96004.0,96001.0,0.00022365]
[1739340223844,0.08020267,96010.0,96001.0,0.00022365]
[1739340224044,0.15624,96006.0,96001.0,0.00022365]
[1739340224784,0.001,96007.0,96001.0,0.00022365]
[1739340225555,0.156238,96008.0,96001.0,0.00022365]
[1739340225766,0.001,96006.0,96001.0,0.00022365]
[1739340226105,0.157241,96006.0,96001.0,0.00022365]
[1739340226531,0.001,96006.0,96001.0,0.00022365]
[1739340226928,0.156245,96003.0,96001.0,0.00022365]
[1739340227126,0.156246,96002.0,96001.0,0.00022365]
[1739340228575,0.156246,96002.0,96001.0,0.00222365]
[1739340250140,0.1438241,96002.0,96001.0,0.00222365]
[1739340250305,1.1438241,96002.0,96001.0,0.00222365]
[1739340252040,1.24632775,96002.0,96001.0,0.00222365]
[1739340252262,1.34922775,96002.0,96001.0,0.00222365]
[1739340252793,1.34922775,96002.0,96001.0,0.00022365]
[1739340252999,1.39762775,96002.0,96001.0,0.00022365]
[1739340253424,0.0799,96000.0,95972.0,0.08364526]
[1739340253652,0.156293,95974.0,95972.0,0.08364526]
[1739340253866,0.156291,95975.0,95972.0,0.08364526]
[1739340254070,0.156288,95977.0,95971.0,4.424e-05]
[1739340254300,0.0076,95981.0,95971.0,4.424e-05]
[1739340254301,0.156285,95979.0,95971.0,4.424e-05]
[1739340254915,0.156284,95979.0,95971.0,4.424e-05]
[1739340255151,0.156286,95978.0,95971.0,4.424e-05]
[1739340255395,0.0076,95988.0,95973.0,0.0768]
[1739340255870,0.156281,95981.0,95972.0,0.001]
[1739340256121,0.156281,95981.0,95971.0,4.424e-05]
[1739340256373,0.156279,95982.0,95972.0,0.001]
[1739340256608,0.156282,95980.0,95971.0,4.424e-05]
[1739340256849,0.002,95988.0,95971.0,4.424e-05]
[1739340257110,0.156287,95977.0,95971.0,4.424e-05]
[1739340257373,0.156285,95979.0,95971.0,4.424e-05]
[1739340257611,0.09687422,95981.0,95971.0,4.424e-05]
[1739340257852,0.156291,95975.0,95971.0,4.424e-05]
[1739340258114,0.156292,95974.0,95971.0,4.424e-05]
[1739340258354,0.156289,95976.0,95971.0,4.424e-05]
[1739340258599,0.208381,95978.0,95971.0,0.00015084]
[1739340258849,0.001,95980.0,95971.0,0.00015084]
[1739340259111,0.001,95979.0,95971.0,0.00015084]
[1739340259347,0.156274,95985.0,95973.0,0.156292]
[1739340259579,0.156274,95985.0,95972.0,0.0828]
[1739340259580,0.001,95976.0,95972.0,0.0828]
[1739340259821,0.156277,95984.0,95972.0,0.0828]
[1739340260027,0.208366,95985.0,95972.0,0.0828]
[1739340260188,0.002,95980.0,95972.0,0.0828]
[1739340261521,0.001,95980.0,95972.0,0.0828]
[1739340262186,0.156279,95982.0,95972.0,0.0828]
[1739340262411,0.001,95980.0,95972.0,0.0828]
[1739340264536,0.001,95980.0,95971.0,0.00015084]
[1739340264762,0.157282,95980.0,95971.0,0.00015084]
[1739340265008,0.001,95980.0,95971.0,0.00015084]
[1739340265207,0.00779995,95979.0,95971.0,0.00015084]
[1739340266647,0.00879995,95979.0,95971.0,0.00115084]
[1739340266858,0.00779995,95978.0,95971.0,0.00115084]
[1739340267240,0.00779995,95978.0,95972.0,0.048]
[1739340267448,0.00779995,95978.0,95973.0,0.156293]
[1739340268075,0.156276,95984.0,95973.0,0.156293]
[1739340268492,0.4,96178.0,95976.0,0.156289]
[1739340268493,0.001,95978.0,95976.0,0.156289]
[1739340268695,0.15,95997.0,95983.0,0.156277]
[1739340268925,0.001,95978.0,95977.0,0.0828]
[1739340269114,0.001,95978.0,95977.0,0.239087]
[1739340269354,0.15,95997.0,95977.0,0.291183]
[1739340269536,0.001,95984.0,95982.0,0.156278]
[1739340269741,0.001,95984.0,95983.0,0.049]
[1739340269939,0.001,95997.0,95989.0,0.156266]
[1739340270150,0.001,95997.0,95984.0,0.0828]
[1739340270347,0.001,95997.0,95990.0,0.156265]
[1739340270847,0.001,95997.0,95984.0,0.0828]
[1739340271077,0.00022387,95997.0,95989.0,0.156266]
[1739340271276,0.00022387,95997.0,95990.0,0.156264]
[1739340271456,0.00122387,95997.0,95990.0,0.156264]
[1739340271952,0.00022387,95997.0,95990.0,0.156264]
[1739340272152,0.00122387,95997.0,95988.0,0.156268]
[1739340272384,0.00122387,95997.0,95989.0,0.156267]
[1739340272785,0.00122387,95997.0,95984.0,0.0828]
[1739340272786,0.15626,95994.0,95985.0,0.156273]
[1739340272923,0.15626,95994.0,95986.0,0.156272]
[1739340273130,0.00222387,95997.0,95984.0,0.0828]
[1739340273331,0.00122387,95997.0,95987.0,0.15627]
[1739340273527,0.156258,95995.0,95987.0,0.15627]
[1739340273758,0.15847887,95997.0,95988.0,0.156269]
[1739340274207,0.156256,95996.0,95988.0,0.156269]
[1739340275350,0.00122387,95997.0,95985.0,0.208365]
[1739340275494,0.156258,95995.0,95987.0,0.15627]
[1739340275908,0.001,95996.0,95985.0,0.208365]
[1739340276119,0.002,95996.0,95988.0,0.156268]
[1739340276314,0.15647887,95997.0,95988.0,0.156268]
[1739340276557,0.001,95995.0,95988.0,0.156268]
[1739340276735,0.158259,95995.0,95983.0,0.048]
[1739340276949,0.157259,95995.0,95987.0,0.15627]
[1739340277563,0.157259,95995.0,95988.0,0.156269]
[1739340277765,0.156259,95995.0,95987.0,0.156269]
[1739340278569,0.156259,95995.0,95985.0,0.208365]
[1739340278777,0.00022387,95997.0,95983.0,0.048]
[1739340278954,0.002,95995.0,95983.0,0.048]
[1739340279371,0.001,95995.0,95983.0,0.048]
[1739340279573,0.00022387,95997.0,95983.0,0.048]
[1739340279960,0.15626,95994.0,95986.0,0.156272]
[1739340280154,0.15626,95994.0,95983.0,0.25637]
[1739340280380,0.15626,95994.0,95986.0,0.156272]
[1739340280764,0.001,95995.0,95983.0,0.048]
[1739340280915,0.156269,95989.0,95979.0,0.156282]
[1739340281331,0.156273,95986.0,95974.0,0.208389]
[1739340281530,0.208346,95994.0,95972.0,0.0462]
[1739340281729,0.156279,95982.0,95973.0,0.156293]
[1739340281957,0.0782,95993.0,95972.0,0.0462]
[1739340282256,0.208368,95984.0,95979.0,0.002]
[1739340282457,0.156277,95983.0,95979.0,0.002]
[1739340282802,0.208354,95991.0,95973.0,0.002]
[1739340282978,0.156274,95985.0,95976.0,0.156287]
[1739340283138,0.156276,95984.0,95976.0,0.156287]
[1739340283357,0.157276,95984.0,95976.0,0.156287]
[1739340283685,0.001,95984.0,95977.0,0.156287]
[1739340284435,0.001,95984.0,95979.0,0.001]
[1739340284841,0.156269,95989.0,95979.0,0.001]
[1739340285087,0.156269,95989.0,95971.0,0.00015084]
[1739340285398,0.001,95991.0,95979.0,0.156283]
[1739340285779,0.001,95984.0,95979.0,0.156283]
[1739340285973,0.0782,95993.0,95977.0,0.208382]
[1739340286172,0.156271,95987.0,95978.0,0.156285]
[1739340286407,0.156271,95987.0,95977.0,0.208382]
[1739340286408,0.156271,95987.0,95979.0,0.156282]
[1739340286852,0.156272,95987.0,95978.0,0.156285]
[1739340287127,0.156273,95986.0,95978.0,0.156285]
[1739340287303,0.208359,95988.0,95971.0,0.00015084]
[1739340287526,0.001,95989.0,95978.0,0.156284]
[1739340287731,0.156273,95986.0,95979.0,0.001]
[1739340287931,0.001,95984.0,95979.0,0.001]
[1739340288161,0.001,95984.0,95971.0,0.00015084]
[1739340288339,0.14614072,95990.0,95971.0,0.00015084]
[1739340288500,0.14614072,96000.0,95971.0,0.00015084]
[1739340288501,0.156295,95972.0,95971.0,0.00015084]
[1739340289361,0.0791,95976.0,95971.0,0.00015084]
[1739340289513,0.156294,95973.0,95971.0,0.00015084]
[1739340289863,0.156294,95973.0,95971.0,0.00215084]
[1739340290077,0.156295,95972.0,95971.0,0.00215084]
[1739340291108,0.156295,95972.0,95971.0,0.01015084]
[1739340291308,0.156295,95972.0,95971.0,0.01115084]
[1739340291484,0.156295,95972.0,95971.0,0.00115084]
[1739340291689,0.156295,95972.0,95971.0,0.00015084]
[1739340291887,0.158295,95972.0,95971.0,0.00015084]
[1739340292088,0.159295,95972.0,95971.0,0.00015084]
[1739340303467,0.159295,95972.0,95956.0,0.00022386]
[1739340303675,0.156311,95963.0,95956.0,4.425e-05]
[1739340303851,0.1563,95969.0,95956.0,4.425e-05]
[1739340304083,0.208402,95968.0,95956.0,4.425e-05]
[1739340304287,0.15631,95963.0,95956.0,4.425e-05]
[1739340304513,0.156313,95961.0,95956.0,4.425e-05]
[1739340304716,0.156311,95962.0,95956.0,4.425e-05]
[1739340305348,0.208405,95967.0,95956.0,4.425e-05]
[1739340305757,0.156308,95965.0,95956.0,4.425e-05]
[1739340306363,0.156309,95964.0,95956.0,4.425e-05]
[1739340306773,0.004,95969.0,95956.0,4.425e-05]
[1739340306951,0.156313,95962.0,95956.0,0.00015085]
[1739340307161,0.004,95962.0,95956.0,0.00015085]
[1739340307364,0.156314,95961.0,95956.0,0.00015085]
[1739340307591,0.002,95962.0,95956.0,0.00015085]
[1739340307796,0.159308,95964.0,95956.0,0.00015085]
[1739340307996,0.003,95964.0,95956.0,0.00015085]
[1739340308374,0.002,95962.0,95956.0,0.00015085]
[1739340308581,0.156311,95962.0,95956.0,0.00015085]
[1739340308777,0.158311,95962.0,95956.0,0.00015085]
[1739340309351,0.002,95962.0,95956.0,0.00015085]
[1739340309875,0.158312,95962.0,95956.0,0.00015085]
[1739340310153,0.002,95962.0,95956.0,0.00015085]
[1739340310744,0.004,95962.0,95956.0,0.00015085]
[1739340313924,0.004,95962.0,95960.0,0.203614]
[1739340314630,0.002,95962.0,95960.0,0.203614]
[1739340315007,0.481892,95974.0,95962.0,0.15631]
[1739340315636,0.3256,95974.0,95960.0,0.0473]
[1739340315836,0.481893,95974.0,95961.0,0.156312]
[1739340316409,0.3256,95974.0,95960.0,0.0473]